bitfinex/quotes_BTCUSD_20250523
["timestamp","ask_amount","ask_price","bid_price","bid_amount"]
[1747986661186,0.40580196,110550.0,110540.0,0.00851295]
[1747986661792,0.40580196,110550.0,110540.0,0.17840497]
[1747986662360,0.40880196,110550.0,110540.0,0.17840497]
[1747986663185,0.40880196,110550.0,110540.0,0.00851295]
[1747986663388,0.40880196,110550.0,110540.0,0.17840497]
[1747986663590,0.40880196,110550.0,110540.0,0.00851295]
[1747986663819,0.40880196,110550.0,110540.0,0.16993202]
[1747986664767,0.40880196,110550.0,110540.0,0.33982404]
[1747986665790,0.40880196,110550.0,110540.0,0.16993202]
[1747986665994,0.40880196,110550.0,110540.0,4e-05]
[1747986666154,0.40880196,110550.0,110540.0,0.16993202]
[1747986668122,0.40880196,110550.0,110540.0,0.17887521]
[1747986669299,0.40880196,110550.0,110540.0,0.16989202]
[1747986669300,0.39975645,110550.0,110540.0,0.16989202]
[1747986669645,0.20808705,110530.0,110520.0,1.08395588]
[1747986669868,0.29763261,110530.0,110520.0,1.35525472]
[1747986670074,0.28858595,110530.0,110520.0,1.34620683]
[1747986670756,0.28958595,110530.0,110520.0,1.51609885]
[1747986671764,0.28958595,110530.0,110520.0,0.89949885]
[1747986671976,0.29058595,110530.0,110520.0,1.52525632]
[1747986672179,0.29058595,110530.0,110520.0,1.18547228]
[1747986672378,0.29058595,110530.0,110520.0,1.52525632]
[1747986673466,0.29058595,110530.0,110520.0,1.24504835]
[1747986673695,0.29058595,110530.0,110520.0,1.51620835]
[1747986673883,0.28153905,110530.0,110520.0,1.51620835]
[1747986675573,0.28153905,110530.0,110520.0,1.17642431]
[1747986676151,0.28153905,110530.0,110520.0,1.15590716]
[1747986676536,0.28153905,110530.0,110520.0,1.16495521]
[1747986676939,0.28153905,110530.0,110520.0,1.18545521]
[1747986677748,0.28153905,110530.0,110520.0,1.16495521]
[1747986678685,0.28153905,110530.0,110520.0,1.15590716]
[1747986679049,0.2724919,110530.0,110520.0,0.97494444]
[1747986679861,0.2724919,110530.0,110520.0,1.15590716]
[1747986680168,0.2996919,110530.0,110520.0,1.15590716]
[1747986680406,0.2996919,110530.0,110520.0,0.97494444]
[1747986681316,0.2724919,110530.0,110520.0,0.97494444]
[1747986681737,0.2993919,110530.0,110520.0,0.96589631]
[1747986681925,0.3264919,110530.0,110520.0,0.96589631]
[1747986682241,0.2724919,110530.0,110520.0,1.15590716]
[1747986682539,0.2724919,110530.0,110520.0,0.96589631]
[1747986682767,0.2724919,110530.0,110520.0,1.15590708]
[1747986683078,0.2724919,110530.0,110520.0,1.14685903]
[1747986683283,0.2724919,110530.0,110520.0,1.15590716]
[1747986683487,0.2724919,110530.0,110520.0,1.15730716]
[1747986683693,0.2724919,110530.0,110520.0,0.96729631]
[1747986683895,0.2979919,110530.0,110520.0,0.88614708]
[1747986684030,0.2979919,110530.0,110520.0,1.15730708]
[1747986686716,0.2969919,110530.0,110520.0,1.15730708]
[1747986687163,0.2989919,110530.0,110520.0,1.14825903]
[1747986687333,0.2979919,110530.0,110520.0,0.96729631]
[1747986687485,0.3239919,110530.0,110520.0,1.15730716]
[1747986689477,0.3239919,110530.0,110520.0,0.69613631]
[1747986689683,0.3239919,110530.0,110520.0,0.00929631]
[1747986690546,0.3209919,110530.0,110520.0,0.00929631]
[1747986690755,0.3269919,110530.0,110520.0,0.00929631]
[1747986691373,0.34153275,110530.0,110520.0,0.00929631]
[1747986692419,0.34153275,110530.0,110520.0,0.01776416]
[1747986693905,0.34153275,110530.0,110520.0,0.00929631]
[1747986694362,0.52155864,110530.0,110520.0,0.00013884]
[1747986694700,0.52155864,110530.0,110510.0,8e-05]
[1747986694701,0.25051069,110520.0,110510.0,8e-05]
[1747986694964,0.63658197,110520.0,110510.0,0.00059171]
[1747986695174,0.36542197,110520.0,110510.0,0.00059171]
[1747986695375,0.3445971,110520.0,110510.0,0.00059171]
[1747986695940,0.43616744,110520.0,110510.0,0.00059171]
[1747986696328,0.6297971,110520.0,110510.0,0.00059171]
[1747986697292,0.6337971,110520.0,110510.0,0.00059171]
[1747986702004,0.6338371,110520.0,110510.0,0.00059171]
[1747986702421,0.3625971,110520.0,110510.0,0.00059171]
[1747986703245,0.21564507,110500.0,110490.0,0.18105185]
[1747986703452,0.28864015,110500.0,110490.0,0.19024127]
[1747986703661,0.28864015,110500.0,110490.0,0.20189085]
[1747986703864,0.11669306,110500.0,110490.0,0.22944163]
[1747986704070,0.09859459,110500.0,110490.0,5.27944163]
[1747986704282,0.11669306,110500.0,110490.0,6.24603901]
[1747986704457,0.12774266,110500.0,110490.0,6.24603901]
[1747986704715,0.12774258,110500.0,110490.0,6.24603901]
[1747986704917,0.13679218,110500.0,110490.0,6.24603901]
[1747986705341,0.11969306,110500.0,110490.0,6.23760163]
[1747986705579,0.12874258,110500.0,110490.0,6.23760163]
[1747986705793,0.13779218,110500.0,110490.0,6.23760163]
[1747986706404,0.13779218,110500.0,110490.0,6.24671118]
[1747986706797,0.29164015,110500.0,110490.0,1.08474855]
[1747986706992,0.31824015,110500.0,110490.0,1.2663204]
[1747986707195,0.31824015,110500.0,110490.0,1.27537099]
[1747986707506,0.31824015,110500.0,110490.0,1.15747099]
[1747986708259,0.30919063,110500.0,110490.0,1.15747099]
[1747986708512,0.30919063,110500.0,110490.0,1.1665215]
[1747986708693,0.33569063,110500.0,110490.0,0.97824855]
[1747986709106,0.33569063,110500.0,110490.0,1.16831099]
[1747986709341,0.33569063,110500.0,110490.0,0.97824855]
[1747986709737,0.33569063,110500.0,110490.0,0.00924855]
[1747986709899,0.33569063,110500.0,110490.0,0.28048855]
[1747986710095,0.33569063,110500.0,110490.0,0.28892971]
[1747986710297,0.33569063,110500.0,110490.0,0.64668971]
[1747986710626,0.33569063,110500.0,110490.0,0.01768971]
[1747986710797,0.33569063,110500.0,110490.0,0.28892971]
[1747986711003,0.33569063,110500.0,110490.0,0.28048855]
[1747986712763,0.33569063,110500.0,110490.0,0.28893068]
[1747986718354,0.33569063,110500.0,110490.0,0.01769068]
[1747986718559,0.33569063,110500.0,110490.0,0.64669068]
[1747986720223,0.33569063,110500.0,110490.0,0.63758113]
[1747986720424,0.33569063,110500.0,110490.0,0.63762113]
[1747986720842,0.33569063,110500.0,110490.0,0.00858113]
[1747986721262,0.21686244,110490.0,110480.0,0.81139663]
[1747986721498,0.306408,110490.0,110480.0,0.81139663]
[1747986722494,0.307408,110490.0,110480.0,0.81139663]
[1747986723080,0.31645834,110490.0,110480.0,0.81139663]
[1747986723274,0.28965834,110490.0,110480.0,0.81139663]
[1747986723725,0.29065834,110490.0,110480.0,0.81139663]
[1747986724127,0.31775817,110490.0,110480.0,0.82044771]
[1747986724303,0.32680827,110490.0,110480.0,0.82044771]
[1747986724689,0.31775817,110490.0,110480.0,0.82044787]
[1747986725645,0.30870783,110490.0,110480.0,0.82044787]
[1747986725889,0.29965741,110490.0,110480.0,0.81139663]
[1747986727469,0.29965741,110490.0,110480.0,0.62132]
[1747986727711,0.32475741,110490.0,110480.0,0.81139948]
[1747986728419,0.32475741,110490.0,110480.0,0.80234824]
[1747986728596,0.32475741,110490.0,110480.0,0.62132]
[1747986729423,0.32475741,110490.0,110480.0,0.35004]
[1747986729780,0.32475741,110490.0,110480.0,0.62132]
[1747986731322,0.32475741,110490.0,110480.0,0.80234824]
[1747986731511,0.32475741,110490.0,110480.0,0.62132]
[1747986733706,0.32475741,110490.0,110480.0,0.62978622]
[1747986734512,0.32475741,110490.0,110480.0,0.81081446]
[1747986734917,0.32475741,110490.0,110480.0,0.62978622]
[1747986735733,0.32475741,110490.0,110480.0,0.28978622]
[1747986737105,0.32475741,110490.0,110480.0,0.64758622]
[1747986737548,0.32225741,110490.0,110480.0,0.64758622]
[1747986738650,0.32225741,110490.0,110480.0,0.64694622]
[1747986739627,0.32225741,110490.0,110480.0,0.01850622]
[1747986739884,0.32225741,110490.0,110480.0,0.64694622]
[1747986741295,0.32225741,110490.0,110480.0,0.01850622]
[1747986741516,0.32225741,110490.0,110480.0,0.64694622]
[1747986741956,0.32225741,110490.0,110480.0,0.01850622]
[1747986742196,0.32225741,110490.0,110480.0,0.64694622]
[1747986742916,0.32125741,110490.0,110480.0,0.64694622]
[1747986744102,0.32325741,110490.0,110480.0,0.64694622]
[1747986744511,0.32325741,110490.0,110480.0,0.01850622]
[1747986744734,0.32325741,110490.0,110480.0,0.64694622]
[1747986759457,0.32325741,110490.0,110480.0,0.63848]
[1747986761636,0.19914784,110470.0,110460.0,0.32450836]
[1747986761811,0.2886934,110470.0,110460.0,0.86270392]
[1747986762032,0.30679752,110470.0,110460.0,0.86270392]
[1747986762233,0.33119826,110470.0,110460.0,0.56962262]
[1747986762377,0.30404241,110470.0,110460.0,0.37048138]
[1747986762720,0.30404241,110470.0,110460.0,0.56964807]
[1747986762858,0.30504241,110470.0,110460.0,0.84092807]
[1747986763274,0.30604241,110470.0,110460.0,0.84092807]
[1747986763611,0.30604241,110470.0,110460.0,0.56059527]
[1747986763807,0.30604241,110470.0,110460.0,1.18998079]
[1747986764391,0.30604241,110470.0,110460.0,0.89154239]
[1747986764598,0.30604241,110470.0,110460.0,1.18092832]
[1747986764792,0.30604241,110470.0,110460.0,1.18998104]
[1747986765542,0.33194241,110470.0,110460.0,1.18998104]
[1747986765741,0.30604241,110470.0,110460.0,1.19002104]
[1747986766049,0.30604241,110470.0,110460.0,1.19907368]
[1747986766741,0.30604241,110470.0,110460.0,1.20812623]
[1747986767360,0.30604241,110470.0,110460.0,0.57059368]
[1747986767586,0.30604241,110470.0,110460.0,1.19911368]
[1747986768112,0.15934903,110470.0,110460.0,1.20816615]
[1747986768542,0.34944571,110470.0,110460.0,1.19911368]
[1747986768764,0.17745282,110470.0,110460.0,1.20816623]
[1747986769127,0.17745282,110470.0,110460.0,1.20816565]
[1747986770130,0.15934878,110470.0,110460.0,1.20816565]
[1747986770469,0.17745274,110470.0,110460.0,1.20816565]
[1747986771130,0.15215274,110470.0,110460.0,1.20816565]
[1747986771918,0.14310068,110470.0,110460.0,1.20816565]
[1747986772120,0.15215274,110470.0,110460.0,1.20816565]
[1747986772316,0.17845274,110470.0,110460.0,1.20816565]
[1747986773188,0.16940068,110470.0,110460.0,1.20816565]
[1747986773549,0.17845274,110470.0,110460.0,1.20816565]
[1747986773777,0.0267664,110500.0,110480.0,0.19913015]
[1747986774017,0.21495513,110530.0,110510.0,0.21715859]
[1747986774235,0.04301107,110530.0,110520.0,0.81849085]
[1747986774406,0.06161541,110530.0,110520.0,0.84563426]
[1747986774638,0.25160955,110530.0,110520.0,0.84563476]
[1747986774847,0.04352176,110530.0,110520.0,0.85468199]
[1747986775072,0.14211422,110530.0,110520.0,0.88181599]
[1747986775276,0.12402058,110530.0,110520.0,0.90731599]
[1747986775479,0.19207004,110550.0,110540.0,0.18092998]
[1747986775688,0.19207004,110550.0,110540.0,0.62848]
[1747986775689,0.1922232,110550.0,110540.0,0.62848]
[1747986776640,0.1922232,110550.0,110540.0,0.81845639]
[1747986776883,0.2163232,110550.0,110540.0,0.81845631]
[1747986777114,0.05337965,110550.0,110540.0,0.83754848]
[1747986777337,0.22524882,110550.0,110540.0,0.82850248]
[1747986777567,0.22220355,110550.0,110540.0,0.84980741]
[1747986777762,0.20715804,110550.0,110540.0,0.84880741]
[1747986778011,0.20115804,110550.0,110540.0,0.01804819]
[1747986778244,0.20115804,110550.0,110540.0,0.56614466]
[1747986778245,0.19611245,110550.0,110540.0,0.56614466]
[1747986778476,0.22521245,110550.0,110540.0,0.5581428]
[1747986779393,0.22521245,110550.0,110540.0,0.83846905]
[1747986780084,0.22521245,110550.0,110540.0,0.86754455]
[1747986780317,0.22521245,110550.0,110540.0,0.6593955]
[1747986780588,0.22521245,110550.0,110540.0,0.84032548]
[1747986780867,0.22521245,110550.0,110540.0,0.84937189]
[1747986781122,0.21616677,110550.0,110540.0,0.84937189]
[1747986781524,0.21616677,110550.0,110540.0,0.85841814]
[1747986782348,0.22521228,110550.0,110540.0,0.86746422]
[1747986782559,0.02019818,110550.0,110540.0,0.87651014]
[1747986782952,0.02924345,110550.0,110540.0,0.24819014]
[1747986783152,0.03828896,110550.0,110540.0,0.87643014]
[1747986783361,0.02019818,110550.0,110540.0,1.21643014]
[1747986783488,0.03828888,110550.0,110540.0,1.21643014]
[1747986783691,0.02924336,110550.0,110540.0,1.21643014]
[1747986783922,0.03828871,110550.0,110540.0,1.21643014]
[1747986784344,0.23729343,110550.0,110540.0,1.21643014]
[1747986784597,0.21920323,110550.0,110540.0,1.19833814]
[1747986784775,0.20111245,110550.0,110540.0,0.9993155]
[1747986784919,0.19206677,110550.0,110540.0,0.9993155]
[1747986786013,0.19206677,110550.0,110540.0,1.0264435]
[1747986786915,0.19206677,110550.0,110540.0,1.21641997]
[1747986787210,0.19206677,110550.0,110540.0,1.0264435]
[1747986788138,0.30681233,110550.0,110540.0,0.3982035]
[1747986788339,0.33181233,110550.0,110540.0,1.0264035]
[1747986789107,0.33181233,110550.0,110540.0,0.9992355]
[1747986791005,0.33181233,110550.0,110540.0,0.3710755]
[1747986791157,0.33181233,110550.0,110540.0,0.9991955]
[1747986795488,0.33181233,110550.0,110540.0,0.3710755]
[1747986795720,0.33181233,110550.0,110540.0,0.3880355]
[1747986795889,0.33181233,110550.0,110540.0,0.6591955]
[1747986796946,0.33181233,110550.0,110540.0,0.3880355]
[1747986797113,0.33181233,110550.0,110540.0,0.6591955]
[1747986798748,0.34635318,110550.0,110540.0,0.0310755]
[1747986798951,0.34635318,110550.0,110540.0,0.3022355]
[1747986801329,0.34635318,110550.0,110540.0,0.0310755]
[1747986801543,0.34635318,110550.0,110540.0,0.3022355]
[1747986804203,0.34635318,110550.0,110540.0,0.0310755]
[1747986804430,0.34635318,110550.0,110540.0,0.3022355]
[1747986805504,0.34635318,110550.0,110540.0,0.0310755]
[1747986805910,0.34635318,110550.0,110540.0,0.3022355]
[1747986807151,0.34635318,110550.0,110540.0,0.3022755]
[1747986809933,0.34635318,110550.0,110540.0,0.2732]
[1747986813296,0.34635318,110550.0,110540.0,0.00204]
[1747986813511,0.34635318,110550.0,110540.0,0.63388]
[1747986816092,0.10069872,110550.0,110540.0,1.02568]
[1747986816317,0.01443152,110580.0,110570.0,0.00904388]
[1747986816530,0.30292715,110580.0,110570.0,0.81012855]
[1747986816778,0.0336645,110590.0,110580.0,0.20799321]
[1747986816991,0.13240523,110590.0,110580.0,0.20799321]
[1747986817212,0.32229572,110590.0,110580.0,0.18990767]
[1747986817434,0.32229572,110590.0,110580.0,0.19895073]
[1747986817643,0.14144755,110590.0,110580.0,0.20799354]
[1747986817855,0.31325405,110590.0,110580.0,0.18990767]
[1747986818300,0.31325405,110590.0,110580.0,0.18086453]
[1747986818505,0.29882253,110590.0,110580.0,0.18990767]
[1747986818720,0.28978062,110590.0,110580.0,0.19090767]
[1747986818924,0.29478062,110590.0,110580.0,0.19090767]
[1747986819399,0.29778062,110590.0,110580.0,0.20095073]
[1747986819816,0.29778062,110590.0,110580.0,0.19190767]
[1747986820243,0.28873846,110590.0,110580.0,0.19190767]
[1747986820453,0.27969614,110590.0,110580.0,0.19190775]
[1747986821034,0.27969614,110590.0,110580.0,0.18286453]
[1747986821675,0.27969614,110590.0,110580.0,0.002]
[1747986821932,0.27969614,110590.0,110580.0,0.18286453]
[1747986822577,0.09884797,110590.0,110580.0,0.88346453]
[1747986822798,0.09884797,110590.0,110580.0,0.93769321]
[1747986822799,0.02738599,110590.0,110580.0,0.93769321]
[1747986823018,0.01808244,110600.0,110590.0,0.2079744]
[1747986823310,0.27946983,110600.0,110590.0,0.81906817]
[1747986823499,0.27042849,110600.0,110590.0,0.82811057]
[1747986823707,0.27042849,110600.0,110590.0,0.81906817]
[1747986823914,0.27042849,110600.0,110590.0,0.6472624]
[1747986824568,0.27042849,110600.0,110590.0,0.63822]
[1747986824924,0.27442849,110600.0,110590.0,0.63922]
[1747986825790,0.27642849,110600.0,110590.0,0.63922]
[1747986826421,0.27642849,110600.0,110590.0,0.61212]
[1747986827041,0.27642849,110600.0,110590.0,0.639236]
[1747986829527,0.27642849,110600.0,110590.0,0.84788417]
[1747986829996,0.27642849,110600.0,110590.0,0.82008417]
[1747986830226,0.27642849,110600.0,110590.0,0.639236]
[1747986830423,0.27642849,110600.0,110590.0,0.82008417]
[1747986831738,0.27642849,110600.0,110590.0,0.639236]
[1747986832393,0.27642849,110600.0,110590.0,0.82008417]
[1747986833486,0.27642849,110600.0,110590.0,0.639236]
[1747986837069,0.29451109,110600.0,110590.0,0.86536873]
[1747986837339,0.03317505,110600.0,110590.0,0.61233272]
[1747986837539,0.0422159,110600.0,110590.0,6.30009455]
[1747986837965,0.0472574,110600.0,110590.0,6.29909455]
[1747986838371,0.03621647,110600.0,110590.0,6.29909455]
[1747986838591,0.02817497,110600.0,110590.0,6.29909455]
[1747986838985,0.01913355,110600.0,110590.0,6.29909455]
[1747986839185,0.02817489,110600.0,110590.0,6.29909455]
[1747986840461,0.02817489,110600.0,110590.0,6.28101081]
[1747986840671,0.21804854,110600.0,110590.0,1.919596]
[1747986840880,0.19996594,110600.0,110590.0,2.00568649]
[1747986841062,0.22596594,110600.0,110590.0,1.91962873]
[1747986841261,0.22596594,110600.0,110590.0,1.87597089]
[1747986841479,0.19996594,110600.0,110590.0,1.87597089]
[1747986841683,0.19996594,110600.0,110590.0,1.88501297]
[1747986843430,0.19996594,110600.0,110590.0,1.91463495]
[1747986843637,0.19996594,110600.0,110590.0,1.90559295]
[1747986845726,0.19996594,110600.0,110590.0,1.27691295]
[1747986845944,0.19996594,110600.0,110590.0,1.90559295]
[1747986846184,0.19996594,110600.0,110590.0,1.27691295]
[1747986846367,0.19996594,110600.0,110590.0,1.90559295]
[1747986846631,0.19996594,110600.0,110590.0,1.27691295]
[1747986846849,0.19996594,110600.0,110590.0,1.90559295]
[1747986847742,0.19996594,110600.0,110590.0,1.91639063]
[1747986848891,0.19996594,110600.0,110590.0,1.28771063]
[1747986849113,0.19996594,110600.0,110590.0,1.91639063]
[1747986852168,0.22606594,110600.0,110590.0,1.89830639]
[1747986852335,0.22606594,110600.0,110590.0,1.90734855]
[1747986852746,0.22606594,110600.0,110590.0,1.91639063]
[1747986854269,0.02817464,110600.0,110590.0,1.92543246]
[1747986854472,0.03721614,110600.0,110590.0,1.92543246]
[1747986854855,0.03721614,110600.0,110590.0,1.95213246]
[1747986855065,0.22708955,110600.0,110590.0,1.94309063]
[1747986855231,0.22708955,110600.0,110590.0,1.95213263]
[1747986855445,0.22708955,110600.0,110590.0,1.95213222]
[1747986856022,0.22708955,110600.0,110590.0,1.92543222]
[1747986856223,0.21804862,110600.0,110590.0,1.92543222]
[1747986856445,0.20900744,110600.0,110590.0,1.91639031]
[1747986857683,0.23650744,110600.0,110590.0,1.91639031]
[1747986859311,0.04663314,110600.0,110590.0,1.92543214]
[1747986859505,0.00105111,110600.0,110590.0,1.97803214]
[1747986859706,0.00105111,110600.0,110590.0,1.95183214]
[1747986859916,0.00105111,110600.0,110590.0,1.97803214]
[1747986860761,0.00105111,110600.0,110590.0,1.98163137]
[1747986860967,5.111e-05,110600.0,110590.0,1.98163137]
[1747986861172,5.111e-05,110600.0,110590.0,1.98263137]
[1747986861770,0.00909196,110600.0,110590.0,1.98263137]
[1747986861978,5.111e-05,110600.0,110590.0,1.98263137]
[1747986862366,5.111e-05,110600.0,110590.0,1.98363137]
[1747986862743,0.00909204,110600.0,110590.0,1.95743137]
[1747986863109,0.00909196,110600.0,110590.0,1.95743137]
[1747986863339,0.00909196,110600.0,110590.0,1.95515137]
[1747986863971,5.111e-05,110600.0,110590.0,1.95515137]
[1747986864465,0.00909196,110600.0,110590.0,1.32875137]
[1747986864787,0.00909196,110600.0,110590.0,1.95515137]
[1747986866338,5.111e-05,110600.0,110590.0,1.98245137]
[1747986866875,0.00909196,110600.0,110590.0,1.98245137]
[1747986867462,5.111e-05,110600.0,110590.0,1.98245137]
[1747986867883,0.00909196,110600.0,110590.0,1.98245137]
[1747986868038,5.111e-05,110600.0,110590.0,1.98245137]
[1747986868630,0.00909196,110600.0,110590.0,1.95515137]
[1747986868853,0.00909196,110600.0,110590.0,2.34535137]
[1747986869077,0.01813297,110600.0,110590.0,2.37255137]
[1747986869480,0.00909196,110600.0,110590.0,2.37255137]
[1747986869932,0.02717415,110600.0,110590.0,2.37255137]
[1747986870084,0.02717415,110600.0,110590.0,2.34535137]
[1747986870812,0.01813297,110600.0,110590.0,2.34535137]
[1747986871019,0.02717415,110600.0,110590.0,2.34535137]
[1747986871752,0.01813297,110600.0,110590.0,2.34535137]
[1747986872046,0.02717415,110600.0,110590.0,2.34535137]
[1747986873299,0.01813297,110600.0,110590.0,2.34535137]
[1747986873500,0.02717415,110600.0,110590.0,2.34535137]
[1747986874229,0.01813297,110600.0,110590.0,2.34535137]
[1747986874553,0.00909196,110600.0,110590.0,2.34535137]
[1747986874741,0.01813306,110600.0,110590.0,2.34535137]
[1747986876541,5.111e-05,110600.0,110590.0,2.34535137]
[1747986876752,0.00909196,110600.0,110590.0,2.34535137]
[1747986876993,0.00909196,110600.0,110590.0,2.37265137]
[1747986877413,5.111e-05,110600.0,110590.0,2.37265137]
[1747986877915,0.00909204,110600.0,110590.0,2.37265137]
[1747986878167,0.00909204,110600.0,110590.0,2.34535137]
[1747986878569,0.00909204,110600.0,110590.0,2.31891137]
[1747986878980,0.22646496,110600.0,110590.0,1.82189289]
[1747986879257,0.25326553,110600.0,110590.0,2.2827433]
[1747986879468,0.25326553,110600.0,110590.0,2.30082754]
[1747986879680,0.24422435,110600.0,110590.0,2.27370106]
[1747986879900,0.24422435,110600.0,110590.0,2.28274338]
[1747986880123,0.24422435,110600.0,110590.0,2.29725765]
[1747986880337,0.25326553,110600.0,110590.0,2.31534139]
[1747986880637,0.26230703,110600.0,110590.0,2.31534139]
[1747986880847,0.27134862,110600.0,110590.0,2.30629956]
[1747986881009,0.24454862,110600.0,110590.0,2.30629956]
[1747986881215,0.24454862,110600.0,110590.0,2.29547262]
[1747986882258,0.07163322,110600.0,110590.0,2.29547254]
[1747986882451,5.111e-05,110600.0,110590.0,1.95547254]
[1747986882765,0.33087197,110620.0,110600.0,0.21747283]
[1747986882766,0.15,110620.0,110600.0,0.21747283]
[1747986882906,0.15,110620.0,110610.0,5.5288968]
[1747986883317,0.15,110620.0,110610.0,5.9118968]
[1747986883318,0.0818474,110620.0,110610.0,5.9118968]
[1747986883524,0.0818474,110620.0,110610.0,5.9390028]
[1747986883764,0.12977402,110630.0,110620.0,0.207918]
[1747986883942,0.04221025,110630.0,110620.0,5.257918]
[1747986884139,0.01747825,110630.0,110620.0,5.3177307]
[1747986884337,0.02186751,110650.0,110640.0,0.20788042]
[1747986884542,0.02237909,110650.0,110640.0,5.88420042]
[1747986884779,0.04045311,110650.0,110640.0,5.88420042]
[1747986884986,0.02237909,110650.0,110640.0,5.91130242]
[1747986885160,0.03141602,110650.0,110640.0,5.91130242]
[1747986885366,0.02237909,110650.0,110640.0,5.91130242]
[1747986885680,0.01334232,110650.0,110640.0,6.36087512]
[1747986886126,0.02237909,110650.0,110640.0,6.37438704]
[1747986886328,0.01154835,110650.0,110640.0,6.37438704]
[1747986886520,0.00251158,110650.0,110640.0,6.37438704]
[1747986886722,0.00251158,110650.0,110640.0,6.71438704]
[1747986887169,0.00251158,110650.0,110640.0,6.74794416]
[1747986888141,0.00251158,110650.0,110640.0,6.71438704]
[1747986888365,0.00251158,110650.0,110640.0,6.72621453]
[1747986888694,0.00251158,110650.0,110640.0,6.72721453]
[1747986890108,0.00251158,110650.0,110640.0,6.73654849]
[1747986891628,0.0180723,110660.0,110650.0,0.20786163]
[1747986891838,0.31869691,110670.0,110660.0,0.19880657]
[1747986892058,0.13813231,110670.0,110660.0,0.84303887]
[1747986892258,0.13813174,110670.0,110660.0,5.89303887]
[1747986892462,0.32788497,110670.0,110660.0,5.89303887]
[1747986892665,0.32788497,110670.0,110660.0,5.88400276]
[1747986892867,0.32788497,110670.0,110660.0,5.87496657]
[1747986893066,0.33692084,110670.0,110660.0,5.90206257]
[1747986893289,0.32788554,110670.0,110660.0,5.90922217]
[1747986893694,0.32788554,110670.0,110660.0,5.8911497]
[1747986893895,0.32788554,110670.0,110660.0,5.90922225]
[1747986894298,0.32988554,110670.0,110660.0,5.90922225]
[1747986894526,0.33188554,110670.0,110660.0,5.28306225]
[1747986894734,0.33188554,110670.0,110660.0,6.25294225]
[1747986894882,0.24951371,110670.0,110660.0,6.24390606]
[1747986895095,0.24047817,110670.0,110660.0,6.24390606]
[1747986895289,0.24047817,110670.0,110660.0,6.25294234]
[1747986896091,0.05976073,110670.0,110660.0,6.26197845]
[1747986896350,0.24047817,110670.0,110660.0,6.26197853]
[1747986897145,0.24047817,110670.0,110660.0,6.26189853]
[1747986897345,0.24047817,110670.0,110660.0,1.927896]
[1747986897346,0.34858803,110670.0,110660.0,1.927896]
[1747986897542,0.34858803,110670.0,110660.0,2.10862977]
[1747986897749,0.33955224,110670.0,110660.0,1.927896]
[1747986897982,0.33955224,110670.0,110660.0,2.11766637]
[1747986898428,0.33955224,110670.0,110660.0,2.12670289]
[1747986899167,0.33955224,110670.0,110660.0,1.657056]
[1747986899367,0.33051637,110670.0,110660.0,1.927896]
[1747986899556,0.33051637,110670.0,110660.0,2.08056637]
[1747986900444,0.33051637,110670.0,110660.0,2.04576645]
[1747986901486,0.33051637,110670.0,110660.0,1.99566645]
[1747986902212,0.33955224,110670.0,110660.0,2.01373957]
[1747986903031,0.33955224,110670.0,110660.0,1.71976305]
[1747986903236,0.33955224,110670.0,110660.0,1.82820305]
[1747986906308,0.33955224,110670.0,110660.0,1.83723949]
[1747986906514,0.04168875,110670.0,110660.0,1.85531196]
[1747986906742,0.0597595,110670.0,110660.0,1.85531196]
[1747986907155,0.0687952,110670.0,110660.0,2.24527196]
[1747986907377,0.05072388,110670.0,110660.0,2.24527196]
[1747986907593,0.06879504,110670.0,110660.0,2.24527196]
[1747986908003,0.25854827,110670.0,110660.0,2.24527196]
[1747986908180,0.25854901,110670.0,110660.0,2.24527196]
[1747986908580,0.25854901,110670.0,110660.0,2.23623585]
[1747986908782,0.24951363,110670.0,110660.0,2.23623585]
[1747986908986,0.27731363,110670.0,110660.0,2.24527213]
[1747986909756,0.27731363,110670.0,110660.0,2.23623585]
[1747986910715,0.26827817,110670.0,110660.0,1.60643585]
[1747986910928,0.26827817,110670.0,110660.0,2.23623585]
[1747986912214,0.25924247,110670.0,110660.0,2.21816305]
[1747986912653,0.25924247,110670.0,110660.0,2.23623601]
[1747986913620,0.25924247,110670.0,110660.0,1.86010357]
[1747986914056,0.25924247,110670.0,110660.0,1.89623701]
[1747986914266,0.25924247,110670.0,110660.0,1.90527337]
[1747986915599,0.25924247,110670.0,110660.0,1.9070645]
[1747986915798,0.25924247,110670.0,110660.0,2.2470645]
[1747986916313,0.25924247,110670.0,110660.0,2.25614078]
[1747986917276,0.25924247,110670.0,110660.0,2.2471045]
[1747986919776,0.25924247,110670.0,110660.0,2.23806806]
[1747986919990,0.25924247,110670.0,110660.0,2.15866806]
[1747986920161,0.25924247,110670.0,110660.0,1.42570019]
[1747986920340,0.25020668,110670.0,110660.0,1.43473671]
[1747986921230,0.25020668,110670.0,110660.0,1.71461331]
[1747986922486,0.25020668,110670.0,110660.0,1.72364999]
[1747986923452,0.25020668,110670.0,110660.0,1.73268643]
[1747986923654,0.25020668,110670.0,110660.0,1.72364999]
[1747986923849,0.25020668,110670.0,110660.0,1.71461347]
[1747986925206,0.25020668,110670.0,110660.0,2.10457347]
[1747986927372,0.22240668,110670.0,110660.0,2.10457347]
[1747986928724,0.22240668,110670.0,110660.0,2.09553687]
[1747986928952,0.21337081,110670.0,110660.0,2.09553687]
[1747986930376,0.21337081,110670.0,110660.0,2.10457347]
[1747986930616,0.21337081,110670.0,110660.0,2.11360999]
[1747986931189,0.04168858,110670.0,110660.0,2.16389516]
[1747986931412,0.06879521,110670.0,110660.0,2.13168246]
[1747986931636,0.06879521,110670.0,110660.0,2.18577946]
[1747986931810,0.25854852,110670.0,110660.0,2.17674335]
[1747986932034,0.25854852,110670.0,110660.0,2.18577963]
[1747986932246,0.24951331,110670.0,110660.0,2.15877963]
[1747986932855,0.24951331,110670.0,110660.0,2.17321628]
[1747986934041,0.24951331,110670.0,110660.0,1.15349628]
[1747986934807,0.24951331,110670.0,110660.0,1.18159579]
[1747986935139,0.24951331,110670.0,110660.0,1.15349579]
[1747986935713,0.24951331,110670.0,110660.0,1.18069579]
[1747986936926,0.24951331,110670.0,110660.0,1.1444596]
[1747986937141,0.24047801,110670.0,110660.0,1.13542332]
[1747986937680,0.24047801,110670.0,110660.0,1.12638696]
[1747986937906,0.23144247,110670.0,110660.0,1.12638696]
[1747986938615,0.23144247,110670.0,110660.0,1.11735044]
[1747986938819,0.22240668,110670.0,110660.0,1.11735044]
[1747986939179,0.22240668,110670.0,110660.0,1.12638696]
[1747986939412,0.22240668,110670.0,110660.0,1.09928996]
[1747986939813,0.22240668,110670.0,110660.0,1.1083264]
[1747986940194,0.22240668,110670.0,110660.0,1.09928996]
[1747986942537,0.21337081,110670.0,110660.0,1.09025344]
[1747986942748,0.21337081,110670.0,110660.0,1.08121684]
[1747986943851,0.21337081,110670.0,110660.0,0.90048307]
[1747986945969,0.21337081,110670.0,110660.0,1.09025352]
[1747986946570,0.21337081,110670.0,110660.0,1.08121684]
[1747986947357,0.21337081,110670.0,110660.0,1.0804736]
[1747986947561,0.24017081,110670.0,110660.0,0.34663983]
[1747986947770,0.32971637,110670.0,110660.0,0.34663983]
[1747986947987,0.32971637,110670.0,110660.0,0.34593093]
[1747986948192,0.32971637,110670.0,110660.0,0.01447665]